Cogmind - Beta 16 @@@ ROGUE MODE // 2026.01.20 @ 19:38:46 Player: Sunvar Result: Destroyed by S-43 Plague with Heavy Machine Gun Performance ------------- Evolutions (9) 4500 Regions Visited (26) 5200 Robots Destroyed (313) 1565 Value Destroyed (14737) 14737 Prototype IDs (54) 1080 Alien Tech Used (0) 0 Bonus (8213) 8213 TOTAL SCORE: 35295 Bonus ------- High Alert Combat Kills 2749 Follower Combat Kills 1419 Aligned with FarCom 300 Met Data Miner 300 Met Warlord at Base 500 MAIN.C Attacked Warlord 500 Warlord Defense Kills 3194 Friendly Fire -749 Cogmind --------- Core Integrity 0/1600 Matter 299/300 Energy 100/100 System Corruption 0% Temperature Cool (0) Movement Core (50) Location -1/Access Parts ------- > --- POWER (2) -------- (None) > --- PROPULSION (8) --- (None) > --- UTILITY (11) ----- (None) > --- WEAPON (4) ------- (None) > --- INVENTORY (5) ---- High-density Centrium Wheel Superbattery (1500) Advanced Targeting Computer Long-range Tractor Beam Enhanced Nova Cannon Peak State ------------ > --- POWER ------------ Vortex Chain Reactor > --- PROPULSION ------- Improved Heavy Treads Advanced Heavy Treads Advanced Heavy Treads > --- UTILITY ---------- Advanced Cooling System Experimental Cooling System High-capacity Storage Unit Experimental Targeting Computer Weapon Mount Quantum Capacitor Transmission Jammer Layered Medium Armor Plating Graphene Brace Advanced Force Field > --- WEAPON ----------- Compact HERF Cannon Enhanced Nova Cannon Linear Accelerator Shock Maul > --- INVENTORY -------- Reinforced Fission Core Cooled Fission Core Armored Medium Treads Advanced Medium Treads High-density Centrium Wheel High-density Centrium Wheel Superbattery Advanced Targeting Computer Experimental Targeting Computer Precision Energy Filter Hardened Medium Armor Plating Thermal Barrier Improved Force Field Advanced Point Defense System Long-range Tractor Beam Hacking Drone Bay Matter Neutralizer Vortex Cannon Nova Cannon Long-range Missile Launcher [Rating: 175] Favorites ----------- Power Vortex Chain Reactor Engine Reinforced Deuterium Engine Power Core Cooled Fission Core Reactor Vortex Chain Reactor Propulsion Armored Medium Treads Treads Armored Medium Treads Leg Aluminum Leg Wheel Wheel Hover Unit Improved Linear Gravjet Utility Improved Heat Sink Device Improved Heat Sink Storage High-capacity Storage Unit Processor Experimental Targeting Computer Hackware Authchip [Processor] Protection Layered Medium Armor Plating Weapon Heavy Particle Cannon Energy Gun Gatling Laser Energy Cannon Heavy Particle Cannon Ballistic Gun Assault Rifle Ballistic Cannon Gauss Cannon Launcher Long-range Missile Launcher Special Weapon RU-N14's Throwing Claymores Impact Weapon Shock Maul Slashing Weapon Phasing Sabre Build | -11 -10 -10 -10 -9 -8 -7 -7 -7 -7 -6 -6 -6 -6 -6 -5 -5 -5 -5 -5 -4 -4 -4 -4 -3 -2 -1 ------- Run | Yrd Mat Min Exi Min Mat Fac Low Low Dat Pro Fac Low Low Zio Pro Fac Upp Upp War Pro Fac Was Fac Res Res Acc Slots Evolved 18 | . . . . . 4 2 . . . . 2 . . . . 2 . . . . 2 . . 2 2 2 Power 1 | . . . . . . . . . . . 1 . . . . . . . . . . . . . . . Propulsion 6 | . . . . . 1 1 . . . . 1 . . . . . . . . . 1 . . . . 2 Utility 9 | . . . . . 2 1 . . . . . . . . . 2 . . . . 1 . . 1 2 . Weapon 2 | . . . . . 1 . . . . . . . . . . . . . . . . . . 1 . . Parts Attached 128 | 1 11 . . . 19 10 1 2 . 2 3 3 1 2 2 19 3 1 15 . 8 . . 11 13 1 Power 12 | . 2 . . . 3 1 . 1 . . . . . . . 3 . . 1 . . . . . 1 . Engine 5 | . 2 . . . 1 1 . 1 . . . . . . . . . . . . . . . . . . Core 4 | . . . . . 2 . . . . . . . . . . 1 . . . . . . . . 1 . Reactor 3 | . . . . . . . . . . . . . . . . 2 . . 1 . . . . . . . Propulsion 33 | . 4 . . . 5 5 . . . . 1 1 . . . 4 1 . 3 . 2 . . 3 3 1 Treads 28 | . 2 . . . 4 5 . . . . 1 1 . . . 4 1 . 3 . 2 . . 2 3 . Leg 2 | . 2 . . . . . . . . . . . . . . . . . . . . . . . . . Wheel 2 | . . . . . 1 . . . . . . . . . . . . . . . . . . 1 . . Hover 1 | . . . . . . . . . . . . . . . . . . . . . . . . . . 1 Flight . | . . . . . . . . . . . . . . . . . . . . . . . . . . . Utility 46 | 1 2 . . . 5 2 . 1 . 1 2 1 1 1 1 6 2 1 5 . 5 . . 4 5 . Device 28 | 1 . . . . 3 1 . . . 1 1 1 1 1 . 3 2 1 3 . 4 . . 4 1 . Storage 3 | . 1 . . . . 1 . . . . . . . . . . . . . . . . . . 1 . Processor 5 | . . . . . . . . . . . 1 . . . 1 . . . 1 . . . . . 2 . Hackware 1 | . . . . . . . . . . . . . . . . 1 . . . . . . . . . . Protection 9 | . 1 . . . 2 . . 1 . . . . . . . 2 . . 1 . 1 . . . 1 . Artifact . | . . . . . . . . . . . . . . . . . . . . . . . . . . . Weapon 37 | . 3 . . . 6 2 1 . . 1 . 1 . 1 1 6 . . 6 . 1 . . 4 4 . Energy Gun 7 | . 2 . . . 2 . . . . . . . . . . 1 . . 2 . . . . . . . Energy Cannon 14 | . . . . . 2 . . . . . . 1 . . . 2 . . 3 . 1 . . 3 2 . Ballistic Gun 2 | . 1 . . . 1 . . . . . . . . . . . . . . . . . . . . . Ballistic Cannon 7 | . . . . . . 1 . . . 1 . . . . . 1 . . 1 . . . . 1 2 . Launcher 3 | . . . . . 1 . 1 . . . . . . . 1 . . . . . . . . . . . Special Weapon 1 | . . . . . . . . . . . . . . 1 . . . . . . . . . . . . Impact Weapon 2 | . . . . . . 1 . . . . . . . . . 1 . . . . . . . . . . Slashing Weapon 1 | . . . . . . . . . . . . . . . . 1 . . . . . . . . . . Piercing Weapon . | . . . . . . . . . . . . . . . . . . . . . . . . . . . Special Melee Weapon . | . . . . . . . . . . . . . . . . . . . . . . . . . . . Unidentified Prototypes 20 | . . . . . 3 . . . . . . . . 2 . 3 . . 9 . . . . 1 2 . Parts Lost 28 | . 2 . . . 1 . . 1 . 1 . . 1 . . 2 . . . . . . . 2 16 2 Power 1 | . . . . . . . . . . . . . . . . . . . . . . . . . 1 . Propulsion 5 | . 1 . . . 1 . . . . . . . . . . . . . . . . . . . 2 1 Utility 11 | . . . . . . . . 1 . . . . 1 . . 1 . . . . . . . 1 7 . Weapon 11 | . 1 . . . . . . . . 1 . . . . . 1 . . . . . . . 1 6 1 Highest Loss Streak 11 | . 2 . . . 1 . . 1 . 1 . . 1 . . 2 . . . . . . . 1 11 2 To Critical Strikes . | . . . . . . . . . . . . . . . . . . . . . . . . . . . Average Backups 17 | 6 10 15 15 15 14 18 18 18 19 18 17 18 17 17 18 17 17 18 19 19 19 19 20 19 18 4 Power 1 | 1 1 2 2 2 1 1 1 1 2 2 1 1 1 1 1 . 1 1 1 2 2 2 2 2 1 . Propulsion 2 | 4 4 4 3 2 2 2 3 3 3 3 2 3 3 3 2 2 2 2 2 2 1 1 1 2 4 1 Utility 8 | . 1 2 2 4 4 7 7 6 6 6 7 8 8 8 9 9 8 9 9 8 10 10 11 11 8 3 Weapon 5 | 1 3 7 7 7 6 6 6 6 6 5 4 4 4 4 5 4 6 6 6 7 6 6 6 3 3 . Tool/Special . | . . . . . . . . . . . . . . . . . . . . . . . . . . . Unused Backups 55 | 6 7 . 1 . 11 2 2 . . 1 1 1 . 3 . 7 . 1 2 . 1 . . 1 5 3 Power 6 | 1 2 . . . 1 . . . . . . . . . . 1 . 1 . . . . . . . . Propulsion 10 | 2 1 . 1 . 1 1 . . . . . . . . . 1 . . 1 . . . . . 1 1 Utility 13 | 1 1 . . . 2 1 1 . . . 1 . . . . 3 . . . . . . . . 2 1 Weapon 24 | 2 3 . . . 7 . 1 . . 1 . . . 2 . 2 . . 1 . 1 . . 1 2 1 Tool/Special 2 | . . . . . . . . . . . . 1 . 1 . . . . . . . . . . . . Average Slot Usage (%) 89 | . 99 100 100 100 99 99 100 100 79 100 99 100 100 100 100 85 88 88 83 82 83 84 83 82 74 2 Engine 5 | . 14 14 14 14 6 7 7 7 7 7 12 13 13 13 13 4 . . . . . . . . . . Reactor 2 | . . . . . . . . . . . . . . . . 3 5 5 5 5 5 5 5 4 3 . Treads 23 | . 9 28 28 28 26 29 30 30 30 30 32 33 33 33 33 20 17 17 18 23 26 26 25 20 13 . Leg 1 | . 18 . . . . . . . . . . . . . . . . . . . . . . . . . Device 20 | . 13 14 14 14 17 21 23 21 15 18 19 13 13 20 17 17 23 23 20 17 22 26 25 25 24 . Storage 6 | . 14 14 14 14 9 7 7 7 7 7 6 6 6 6 6 5 5 5 5 5 5 5 5 4 3 . Processor 4 | . . . . . . . . . . . . 6 6 6 8 5 5 5 9 11 8 5 5 4 7 . Protection 4 | . . . . . 8 8 7 8 15 11 6 5 5 . . 5 5 5 3 5 5 5 4 4 3 . Energy Gun 1 | . 6 14 14 14 3 . . . . . . . . . . 2 5 5 3 . . . . . . . Energy Cannon 8 | . . . . . 14 15 15 15 2 15 7 12 13 13 13 8 5 5 4 4 4 5 5 8 7 . Ballistic Gun 2 | . 21 14 14 14 8 3 . . . . . . . . . . . . . . . . . . . . Ballistic Cannon 3 | . . . . . . 2 6 6 . 6 6 6 6 6 5 1 . 4 5 5 5 5 5 3 3 . Impact Weapon 1 | . . . . . . . . . . . 5 . . . . 1 4 . . . . . . 2 3 . Peak Build Rating 175 | 7 11 11 12 12 28 40 40 42 41 43 52 56 56 62 59 96 98 98 121 122 137 137 137 163 175 18 Average Rating 88 | 6 8 11 11 12 25 32 39 41 31 41 49 54 55 56 57 83 96 95 107 120 133 136 136 155 163 6 On Entrance 62 | 6 7 11 11 12 12 27 40 40 41 41 41 52 56 56 58 56 92 97 96 121 120 137 137 137 163 11 Avg Prop Armor Cover (%) 37 | . . . . . 13 4 . . . . . . . . . . . . . . . . . . 41 38 Naked Turns 64 | . . . . . . . . . . . . . . . . . . . . . . . . . . 64 Heaviest Build 167 | 13 34 32 32 32 47 73 73 79 79 80 88 89 89 87 87 112 111 115 144 144 151 151 151 167 149 . Greatest Support 215 | 20 40 40 40 40 60 80 80 80 80 80 102 110 110 110 110 167 167 167 167 151 183 183 183 215 215 10 Greatest Overweight (x) 4 | . 2 . . . 4 1 . . . . . . . . . . . . 1 . . . . 1 . . Average Overweight (x) . | . . . . . . . . . . . . . . . . . . . . . . . . . . . Largest Inventory Capacity 20 | 8 15 15 15 15 15 20 20 20 20 20 20 20 20 20 20 20 20 20 20 20 20 20 20 20 20 5 Average Capacity 19 | 8 14 15 15 15 15 19 20 20 20 20 20 20 20 20 20 20 20 20 20 20 20 20 20 20 19 5 Most Carried 20 | 6 15 15 15 15 15 20 20 20 20 20 20 20 20 20 20 20 20 20 20 20 20 20 20 20 20 5 Average Carried 18 | 6 10 15 14 15 14 19 19 19 20 19 19 19 19 19 20 19 19 19 19 19 19 19 20 19 18 4 Final Capacity 20 | 8 15 15 15 15 15 20 20 20 20 20 20 20 20 20 20 20 20 20 20 20 20 20 20 20 5 5 Final Carried 20 | 6 15 15 15 15 15 20 20 20 20 19 20 20 19 20 20 20 19 20 20 20 20 20 20 20 5 5 Class Distribution -------------------- 32% | Scavenger-Tank 19% | Tank 18% | Mutant 11% | Scavenger-Skirmisher 8% | Skirmisher 4% | Commander-Tank 3% | Scavenger-Mutant Dominant Class ---------------- Mutant | -10/Materials Mutant | -10/Mines Mutant | -10/Exiles Mutant | -9/Mines Scavenger-Skirmisher | -8/Materials Scavenger-Tank | -7/Factory Scavenger-Tank | -7/Lower Caves Scavenger-Tank | -7/Lower Caves Scavenger-Mutant | -7/Data Miner Scavenger-Tank | -6/Proximity Caves Scavenger-Mutant | -6/Factory Skirmisher | -6/Lower Caves Skirmisher | -6/Lower Caves Scavenger-Skirmisher | -6/Zion Scavenger-Skirmisher | -5/Proximity Caves Mutant | -5/Factory Mutant | -5/Upper Caves Tank | -5/Upper Caves Commander-Tank | -5/Warlord Scavenger-Tank | -4/Proximity Caves Scavenger-Tank | -4/Factory Scavenger-Tank | -4/Waste Scavenger-Tank | -4/Factory Scavenger-Tank | -3/Research Tank | -2/Research Mutant | -1/Access Resources | -11 -10 -10 -10 -9 -8 -7 -7 -7 -7 -6 -6 -6 -6 -6 -5 -5 -5 -5 -5 -4 -4 -4 -4 -3 -2 -1 ----------- Run | Yrd Mat Min Exi Min Mat Fac Low Low Dat Pro Fac Low Low Zio Pro Fac Upp Upp War Pro Fac Was Fac Res Res Acc Matter Collected 7589 | 230 448 20 . . 311 330 219 93 . 164 263 150 49 20 74 637 267 398 1022 651 491 115 214 829 435 159 Remotely 1263 | . . . . . . . . . . . . . . . . 35 . . 343 328 365 . . 192 . . Salvage Created 15068 | 119 601 44 . . 830 384 196 116 . 191 153 31 187 . 65 1971 238 728 1368 764 467 . 212 3176 3212 15 Parts 623 | 9 31 5 . . 47 17 9 8 . 11 4 . 3 . 6 64 2 21 31 19 27 . 3 148 156 2 Haulers Intercepted 14 | . 1 . . . 4 2 . . . . . . . . . 2 . 1 . . . . . 1 3 . Recyclers Shooed 9 | . . . . . 2 1 . . . . . . . . . 1 . . . . . . . 3 2 . Parts Field Recycled . | . . . . . . . . . . . . . . . . . . . . . . . . . . . Retrieved Matter . | . . . . . . . . . . . . . . . . . . . . . . . . . . . Parts Self-Destructed 67 | . . . . . . . 9 4 . 7 . . 3 . 3 . 3 20 . 18 . . . . . . Prevented 1 | . . . . . . . . . . . . . . . . . . . . 1 . . . . . . Parts Restored . | . . . . . . . . . . . . . . . . . . . . . . . . . . . Kills | -11 -10 -10 -10 -9 -8 -7 -7 -7 -7 -6 -6 -6 -6 -6 -5 -5 -5 -5 -5 -4 -4 -4 -4 -3 -2 -1 ------- Run | Yrd Mat Min Exi Min Mat Fac Low Low Dat Pro Fac Low Low Zio Pro Fac Upp Upp War Pro Fac Was Fac Res Res Acc Combat Hostiles Destroyed 238 | . 10 3 . . 6 3 7 5 . 16 . 1 3 . 7 22 3 14 27 17 12 . 2 41 38 1 Melee 2 | . . . . . . . . . . . . . . . . . . . . . . . . 1 1 . Guns 26 | . 10 3 . . 4 . . . . . . . . . . 3 . 2 4 . . . . . . . Cannons 147 | . . . . . 2 3 4 2 . 1 . 1 1 . 3 14 . 8 20 15 7 . 1 35 29 1 AOE 49 | . . . . . . . 3 3 . 15 . . . . 4 4 3 4 . 2 5 . . . 6 . Classes Destroyed 24 | 2 4 1 . . 2 1 1 1 . . . . 1 . 1 4 . . 5 . . . . 1 . . Worker 9 | . 1 . . . . 1 . . . . . . . . . 2 . . . . . . . 1 4 . Builder 10 | . . . . . . . . . . . . . . . . 1 . . . . 2 . . . 7 . Tunneler 4 | 3 . . . . . . . . . . . . . . . . . . . . . . . 1 . . Hauler 14 | . 1 . . . 4 2 . . . . . . . . . 2 . 1 . . . . . 1 3 . Recycler 17 | 1 1 . . . 3 1 . . . . 1 . . . . 5 . . . . 1 . 1 1 2 . Mechanic 3 | . . . . . . . . . . . . . . . . . . . 2 . . . . 1 . . Operator 5 | . . . . . 1 1 . . . . . . . . . . . . . . 1 . . 1 1 . Drone 4 | . . . . . . . . . . . . . . . 2 . . . . 2 . . . . . . Watcher 11 | . 2 . . . 1 . . . . . 1 . . . . 1 . . . . . . 1 3 2 . Swarmer 52 | . . 3 . . . . 4 3 . 15 . . . . 5 . 3 4 4 2 5 . . 3 . 1 Saboteur 1 | . . . . . . . . . . . . . . . . . . . . . . . . 1 . . Grunt 69 | . 10 . . . 3 . 2 . . 1 . . 2 . . 8 . 9 11 8 . . . 9 6 . Brawler 6 | . . . . . . . . . . . . . 1 . . . . . . 1 . . . 4 . . Duelist 4 | . . . . . . . . . . . . . . . . . . . 2 2 . . . . . . Protector 3 | . . . . . . . . . . . . . . . . . . . 3 . . . . . . . Sentry 19 | . . . . . 3 2 . . . . . . . . . . . 1 . 1 2 . 1 5 4 . Specialist 2 | . . . . . . . . . . . . . . . . 2 . . . . . . . . . . Hunter 14 | . . . . . . . . . . . . . . . . 4 . . 1 . 2 . 1 . 6 . Programmer 53 | . . . . . . 1 . 1 . . . 1 . . . 7 . . 1 . 2 . . 19 21 . Heavy 2 | . . . . . . . . . . . . . . . . 1 . . . . . . . . 1 . Behemoth 4 | . . . . . . . . 1 . . . . . . . . . . 1 1 1 . . . . . Striker 1 | . . . . . . . . . . . . . . . . . . . 1 . . . . . . . Executioner 2 | . . . . . . . . . . . . . . . . . . . 2 . . . . . . . Thug 2 | . . . . . . . . . . . . . . . . . . . 1 . . . . 1 . . Mutant 2 | . . . . . . . 1 . . . . . . . . . . . 1 . . . . . . . Best Kill Streak 11 | 2 4 3 . . 4 3 4 3 . 8 1 1 3 . 5 6 3 6 6 9 7 . 2 6 11 1 Combat Bots Only 9 | . 4 3 . . 3 2 4 3 . 8 . 1 3 . 5 6 3 5 6 9 5 . 1 6 9 1 Max Kills in Single Turn 7 | 1 1 1 . . 1 1 2 2 . 4 1 1 1 . 3 2 3 3 2 1 7 . 1 1 3 1 Gunslinging . | . . . . . . . . . . . . . . . . . . . . . . . . . . . Exploded 5 | . . . . . . . 2 2 . 4 . . . . 3 2 3 3 . 1 5 . . . 3 . Melee 1 | . . . . . . . . . . . . . . . . . . . . . . . . 1 1 . Uniques/NPCs Destroyed . | . . . . . . . . . . . . . . . . . . . . . . . . . . . Combat | -11 -10 -10 -10 -9 -8 -7 -7 -7 -7 -6 -6 -6 -6 -6 -5 -5 -5 -5 -5 -4 -4 -4 -4 -3 -2 -1 -------- Run | Yrd Mat Min Exi Min Mat Fac Low Low Dat Pro Fac Low Low Zio Pro Fac Upp Upp War Pro Fac Was Fac Res Res Acc Hostile Shots Fired 1455 | . 79 13 . . 16 48 39 57 . 38 . 26 7 . 23 184 . 39 55 49 121 . 16 175 330 140 Missed 463 | . 15 3 . . 3 17 13 21 . 15 . 14 5 . 4 60 . 12 21 9 36 . 5 47 105 58 Hits 992 | . 64 10 . . 13 31 26 36 . 23 . 12 2 . 19 124 . 27 34 40 85 . 11 128 225 82 Melee 10 | . . . . . . . 5 . . . . . . . . . . . 1 3 . . . 1 . . Projectile 982 | . 64 10 . . 13 31 21 36 . 23 . 12 2 . 19 124 . 27 33 37 85 . 11 127 225 82 AOE 3 | . . . . . . . . . . . . . . . . 2 . . 1 . . . . . . . Critical Strikes 33 | . 1 . . . 1 . . . . 1 . . . . . 2 . 4 1 2 4 . . 4 11 2 Actively Blocked 3 | . . . . . . . . . . . . . . . . . . . . . 3 . . . . . Part Disruptions 7 | . . . . . . 1 . . . . . . . . . . . . 1 . . . . 2 3 . Damage Taken 15337 | . 829 87 . . 200 209 316 548 . 365 . 115 37 . 281 2711 35 274 381 609 926 . 105 1500 4035 1774 Core 2790 | . 173 20 . . 33 39 56 85 . . . 6 . . 22 148 . 10 27 18 51 . 5 70 407 1620 Absorbed by Shields 5872 | . . . . . . 87 120 177 . . . . . . . 102 12 283 394 490 534 . 114 1566 1993 . Reduced by Siege Mode 68 | . . . . . . . . . . . . . . . . . . . . 28 13 . . 6 21 . Ignored by Resistances 57 | . . . . . . . . . . . . . . . . . . . . . . . . 57 . . Regen/Repaired (Parts) 1757 | . 70 . . . 25 . . . . . . . . 938 . . . . 321 . . 81 224 98 . . Core Remaining (%) 80 | 100 . . . 22 94 . . . . 74 . . . . 96 . . . . 79 . . 95 94 71 . Volleys Fired 882 | 10 60 5 . . 42 16 25 15 . 14 4 3 4 . 8 62 3 25 78 31 31 . 9 220 210 7 Largest 3 | 2 2 2 . . 3 3 3 3 . 3 2 3 3 . 3 3 1 3 3 2 2 . 2 3 3 1 Hottest 294 | 40 79 79 . . 166 183 183 183 . 183 115 175 175 . 175 221 43 210 218 166 181 . 181 294 272 50 Shots Fired 1544 | 20 120 10 . . 106 46 67 41 . 18 8 9 12 . 20 165 4 70 183 56 50 . 16 272 244 7 Gun 299 | 20 120 10 . . 63 3 . . . . . . . . . 30 . 23 30 . . . . . . . Cannon 1212 | . . . . . 43 43 65 39 . 7 8 9 12 . 18 133 1 45 153 54 49 . 16 272 238 7 Launcher 33 | . . . . . . . 2 2 . 11 . . . . 2 2 3 2 . 2 1 . . . 6 . Special . | . . . . . . . . . . . . . . . . . . . . . . . . . . . Kinetic 467 | 20 87 5 . . 32 15 22 13 . 3 4 3 4 . 6 45 . 22 78 24 24 . 8 33 19 . Thermal 1013 | . 33 5 . . 74 31 43 26 . 4 4 6 8 . 12 114 1 46 105 30 25 . 8 238 200 . Explosive 33 | . . . . . . . 2 2 . 11 . . . . 2 2 3 2 . 2 1 . . . 6 . Electromagnetic 22 | . . . . . . . . . . . . . . . . 4 . . . . . . . 1 17 . Entropic 9 | . . . . . . . . . . . . . . . . . . . . . . . . . 2 7 Robot Hit Streak 60 | 4 14 2 . . 13 7 8 19 . 6 2 8 9 . 4 14 . 24 26 16 14 . 10 60 39 1 Robot Miss Streak 7 | 2 7 2 . . 5 4 6 3 . 4 2 . 2 . 1 4 . 5 3 2 2 . 1 2 2 2 Penetration Max 1 | . . . . . . . . . . . . . . . . 1 . . 1 . . . . . . . Secondary Targets 2 | . 1 1 . . . . . . . . . . . . . . . . . . . . . . . . Max Gunslinging Chain 1 | . 1 1 . . . . . . . . . . . . . . . . . . . . . . . . Capacitor 351 | . . . . . . . . . . . . . . . . . . . . . . . . 176 175 . Shots Hit Robots 1004 | 13 77 5 . . 56 23 37 32 . 9 2 8 6 . 10 127 4 50 102 44 31 . 13 176 177 2 Core Hits 483 | 5 30 3 . . 22 9 14 9 . 21 1 1 3 . 9 64 5 35 55 23 20 . 3 69 81 1 Critical Kills 20 | . . . . . . . . . . . 1 . 2 . . 4 1 . 3 . . . 1 5 3 . Critical Parts Destroyed 3 | . . . . . . . . . . . . . . . . 1 . . . . . . . 1 1 . Critical Strikes 51 | . 4 . . . 1 1 1 1 . . 1 . 2 . . 7 1 1 13 2 2 . 1 8 5 . Burn 5 | . 4 . . . 1 . . . . . . . . . . . . . . . . . . . . . Meltdown 17 | . . . . . . . . . . . 1 . 2 . . 3 . . 3 . . . 1 5 2 . Destroy 1 | . . . . . . . . . . . . . . . . 1 . . . . . . . . . . Blast 23 | . . . . . . 1 1 1 . . . . . . . 2 . 1 10 2 2 . . 2 1 . Smash 5 | . . . . . . . . . . . . . . . . 1 1 . . . . . . 1 2 . Melee Attacks 78 | . . . . . . 3 . . . . 11 . . . . 24 4 1 . . . . . 1 34 . Impact 65 | . . . . . . 3 . . . . 11 . . . . 11 4 1 . . . . . 1 34 . Slashing 13 | . . . . . . . . . . . . . . . . 13 . . . . . . . . . . Piercing . | . . . . . . . . . . . . . . . . . . . . . . . . . . . Sneak Attacks 8 | . . . . . . 1 . . . . . . . . . 3 . . . . . . . 1 3 . Combat Hostiles 1 | . . . . . . . . . . . . . . . . . . . . . . . . . 1 . Follow-up Attacks . | . . . . . . . . . . . . . . . . . . . . . . . . . . . Damage Inflicted 45096 | 145 1062 77 . . 1042 615 1063 1044 . 1456 50 256 198 . 671 4573 604 1698 4609 2975 2520 . 713 9222 10357 146 Guns 3650 | 145 1062 77 . . 578 32 . . . . . . . . . 733 . 533 490 . . . . . . . Cannons 33799 | . . . . . 458 492 849 860 . 93 50 256 198 . 196 2975 . 860 4119 2477 1986 . 713 9151 7920 146 Explosions 6205 | . . . . . . . 214 184 . 1363 . . . . 475 473 211 305 . 498 534 . . . 1948 . Melee 1411 | . . . . . . 87 . . . . . . . . . 371 393 . . . . . . 71 489 . Ramming 31 | . . . . . 6 4 . . . . . . . . . 21 . . . . . . . . . . Kinetic 11343 | 145 699 48 . . 258 147 309 298 . 27 . 106 29 . 25 1019 . 302 2438 1359 1325 . 405 1645 759 . Thermal 26044 | . 363 29 . . 778 377 540 562 . 66 50 150 169 . 171 2620 . 1091 2171 1468 844 . 308 7506 6781 . Explosive 5672 | . . . . . . . 214 184 . 1363 . . . . 475 473 211 305 . 148 351 . . . 1948 . Electromagnetic 449 | . . . . . . . . . . . . . . . . 69 . . . . . . . . 380 . Impact 1411 | . . . . . . 87 . . . . . . . . . 371 393 . . . . . . 71 489 . Slashing . | . . . . . . . . . . . . . . . . . . . . . . . . . . . Piercing . | . . . . . . . . . . . . . . . . . . . . . . . . . . . Entropic 146 | . . . . . . . . . . . . . . . . . . . . . . . . . . 146 Highest Corruption 34 | . . . . . . . . 1 1 1 . . . . . 9 9 9 9 1 2 2 2 15 34 . Average Corruption 8 | . . . . . . . . 1 1 1 . . . . . 7 9 9 1 1 1 2 2 8 19 . Corruption Purged . | . . . . . . . . . . . . . . . . . . . . . . . . . . . Corruption Blocked . | . . . . . . . . . . . . . . . . . . . . . . . . . . . Effects 308 | . . . . . . . . 1 1 3 . . . . . 40 23 24 3 6 3 7 13 68 116 . Message Errors 63 | . . . . . . . . 1 . . . . . . . 9 4 8 1 . 1 3 3 12 21 . Matter Fused 62 | . . . . . . . . . . 2 . . . . . 13 7 5 1 1 . 1 . 10 22 . Heat Flow Errors 34 | . . . . . . . . . . 1 . . . . . 1 3 2 . 1 . 2 2 10 12 . Energy Discharges 34 | . . . . . . . . . . . . . . . . 4 2 4 . 1 . . 1 10 12 . Parts Rejected 2 | . . . . . . . . . . . . . . . . . . . . . . . . . 2 . Parts Fused 4 | . . . . . . . . . . . . . . . . 1 . . . . . . . 1 2 . Data Loss (minor) 39 | . . . . . . . . . . . . . . . . 5 6 2 . 1 1 . 3 8 13 . Data Loss (major) 16 | . . . . . . . . . . . . . . . . 2 . 1 1 . . 1 2 5 4 . Misfires 18 | . . . . . . . . . . . . . . . . 1 1 . . 1 1 . 1 8 5 . Alerts 6 | . . . . . . . . . 1 . . . . . . 1 . 1 . . . . 1 . 2 . Misdirections 15 | . . . . . . . . . . . . . . . . . . . . . . . . 1 14 . Weapon Failures 15 | . . . . . . . . . . . . . . . . 3 . 1 . 1 . . . 3 7 . Overload Shots . | . . . . . . . . . . . . . . . . . . . . . . . . . . . Overflow Damage 2854 | . . . . . 26 77 54 30 . 50 . 34 . . 51 330 214 4 177 154 144 . 16 655 838 . Projectiles 1868 | . . . . . 26 . 37 30 . . . 34 . . . 179 . . 177 135 50 . 16 584 600 . Explosions 382 | . . . . . . . 17 . . 50 . . . . 51 . . 4 . 19 94 . . . 147 . Melee 604 | . . . . . . 77 . . . . . . . . . 151 214 . . . . . . 71 91 . Knockbacks 50 | . . . . . . . 3 1 . . . 1 . . 1 18 . 4 7 4 5 . 1 3 2 . Impact 3 | . . . . . . . . . . . . . . . . 2 . . . . . . . 1 . . Kinetic 46 | . . . . . . . 3 1 . . . 1 . . 1 16 . 4 7 3 5 . 1 2 2 . Secondary 1 | . . . . . . . . . . . . . . . . . . . . 1 . . . . . . Self-Inflicted Damage 567 | . . . . . . . . . . . . . . . 11 56 47 32 . . . . . . 421 . Shots 13 | . . . . . . . . . . . . . . . 2 1 1 1 . . . . . . 8 . Rammed 3 | . . . . . 1 . . . . . . . . . . 2 . . . . . . . . . . Targets Rammed 4 | . . . . . 1 1 . . . . . . . . . 2 . . . . . . . . . . Kicked . | . . . . . . . . . . . . . . . . . . . . . . . . . . . Crushed 1 | . . . . . . 1 . . . . . . . . . . . . . . . . . . . . Highest Temperature 596 | . 341 110 . . 360 84 113 122 . 213 . 72 126 . 90 468 155 400 96 157 32 176 177 596 312 . Average Temperature 85 | . 82 57 . . 78 24 48 60 . 79 . 38 58 . 35 108 70 123 26 18 13 91 26 121 90 . Received Heat Transfer 1657 | . 483 . . . 108 28 54 66 . 9 . 12 18 . . 225 . 85 62 71 39 . . 149 248 . Effects 12 | . . . . . . . . . . . . . . . . 6 . 2 . . . . . 4 . . Shutdowns 3 | . . . . . . . . . . . . . . . . 1 . 1 . . . . . 1 . . Energy Bleed 3 | . . . . . . . . . . . . . . . . 2 . . . . . . . 1 . . Interference 5 | . . . . . . . . . . . . . . . . 3 . . . . . . . 2 . . Damage (minor) 1 | . . . . . . . . . . . . . . . . . . 1 . . . . . . . . Siege Activations 7 | . . . . . . . . . . . . . . . . . . . 1 1 1 . . 3 1 . Total Turns 58 | . . . . . . . . . . . . . . . . . . . 11 13 7 . . 19 8 . Longest Duration 13 | . . . . . . . . . . . . . . . . . . . 11 13 7 . . 9 8 . Martial Activations . | . . . . . . . . . . . . . . . . . . . . . . . . . . . Shielding Activations . | . . . . . . . . . . . . . . . . . . . . . . . . . . . Robots Disrupted . | . . . . . . . . . . . . . . . . . . . . . . . . . . . Combat Hostiles . | . . . . . . . . . . . . . . . . . . . . . . . . . . . Robots Corrupted 4 | . . . . . . . . . . . . . . . . 2 . . . . . . . 1 1 . Combat Hostiles . | . . . . . . . . . . . . . . . . . . . . . . . . . . . Parts Fried 10 | . . . . . . . . . . . . . . . . 6 . . . . . . . 1 3 . Impact Corruptions 19 | . . . . . . 3 . . . . . . . . . 4 4 . . 1 . . . 3 4 . Robots Melted 19 | . . . . . . . . . . . 1 . 2 . . 3 . . 3 . . . 1 6 3 . Combat Hostiles 14 | . . . . . . . . . . . . . 2 . . 1 . . 3 . . . 1 5 2 . Parts Melted 75 | . 1 . . . 3 . 1 . . . 1 . 1 . . 16 . 4 4 . . . . 22 22 . Heat Transferred 26837 | . 1295 74 . . 1628 592 888 814 . 111 74 185 222 . 259 4004 . 1817 2438 200 359 . 259 6364 5254 . Parts Sabotaged 3 | . . . . . . . . . . . . . . . . . . . . . . . . 3 . . Parts Stolen . | . . . . . . . . . . . . . . . . . . . . . . . . . . . Parts Stripped . | . . . . . . . . . . . . . . . . . . . . . . . . . . . Power Chain Reactions 2 | . . . . . . . . . . . . . . . . . . . . 2 . . . . . . Alert | -11 -10 -10 -10 -9 -8 -7 -7 -7 -7 -6 -6 -6 -6 -6 -5 -5 -5 -5 -5 -4 -4 -4 -4 -3 -2 -1 ------- Run | Yrd Mat Min Exi Min Mat Fac Low Low Dat Pro Fac Low Low Zio Pro Fac Upp Upp War Pro Fac Was Fac Res Res Acc Maximum Alert Level 4 | . . . . . . . . . . . . . . . . 2 . . . . 2 . 3 3 4 3 Low Security (%) 41 | 100 100 100 . 100 100 100 . . . . 100 . . . . 24 . . . . 11 100 32 . . . Level 1 16 | . . . . . . . . . . . . . . . . 65 . . . . 24 . 1 32 . . Level 2 19 | . . . . . . . . . . . . . . . . 9 . . . . 64 . 7 51 15 . Level 3 16 | . . . . . . . . . . . . . . . . . . . . . . . 58 16 54 100 Level 4 5 | . . . . . . . . . . . . . . . . . . . . . . . . . 30 . Level 5 . | . . . . . . . . . . . . . . . . . . . . . . . . . . . High Security . | . . . . . . . . . . . . . . . . . . . . . . . . . . . Max Security . | . . . . . . . . . . . . . . . . . . . . . . . . . . . Peak Influence 1530 | 10 127 88 . . 61 87 . . . . 93 . . . . 510 . . . . 597 171 987 1093 1530 968 Initial 936 | . . 18 . . . . . . . . 93 . . . . 325 . . . . 351 171 . 465 614 936 Average 389 | 2 27 63 . . 11 11 . . . . 16 . . . . 280 . . . . 420 50 543 515 960 931 Influence Increases 10207 | 20 307 70 . . 296 156 175 145 . 360 37 30 70 . 120 1124 80 350 975 340 960 . 1374 1352 1774 92 Destroy 0b10 Robot/C 5240 | . 200 60 . . 120 60 120 100 . 320 . 20 60 . 100 460 60 280 660 300 240 . 460 840 760 20 Destroy 0b10 Robot/NC 420 | 20 25 . . . 45 25 . . . . 10 . . . 10 55 10 5 25 10 20 . 20 45 95 . Destroy Leader 990 | . 56 10 . . 40 34 10 30 . 40 2 10 10 . 10 106 10 20 . 30 60 . 114 198 200 . Allied During Kill 795 | . . . . . . . . . . . . . . . . . . . 200 . . . 582 13 . . Successful Hack 206 | . 23 . . . 13 16 . . . . . . . . . 36 . . . . 13 . 28 42 35 . Disable Machine 405 | . . . . . 15 15 . . . . 15 . . . . 45 . . . . 150 . 60 45 60 . Destroy Structure 1086 | . 3 . . . 18 6 . . . . 10 . . . . 122 . . . . 162 . 110 124 519 12 Advance Influence 600 | . . . . . . . . . . . . . . . . 300 . . . . 300 . . . . . Partial Spotted 45 | . . . . . . . . . . . . . . . . . . . . . 15 . . . 15 15 Lose Combat Pursuer 420 | . . . . . 45 . 45 15 . . . . . . . . . 45 90 . . . . 45 90 45 Influence Decreases 9259 | 20 260 69 48 . 294 83 250 86 59 212 178 37 8 62 80 655 487 347 360 978 553 489 488 1145 1307 704 Entered New Map 3211 | . . 29 48 . . 2 29 . 59 . 55 4 . 62 . 15 189 21 105 720 31 318 . 421 479 624 Time Decay 5268 | 20 250 40 . . 284 81 221 76 . 212 123 33 8 . 80 580 278 326 185 258 422 171 208 684 668 60 Search Patrol Dispatched 100 | . . . . . . . . . . . . . . . . . . . . . 100 . . . . . Lost Part 250 | . 10 . . . 10 . . 10 . . . . . . . 20 . . . . . . . 20 160 20 Lost Ally 430 | . . . . . . . . . . . . . . . . 40 20 . 70 . . . 280 20 . . Squads Dispatched 54 | . 1 . . . . 2 . . . . . . . . . 8 . . . . 6 . 7 13 15 2 Investigation 4 | . . . . . . . . . . . . . . . . 1 . . . . 1 . . 2 . . Extermination 20 | . . . . . . 1 . . . . . . . . . 2 . . . . 1 . . 7 8 1 Reinforcement 17 | . 1 . . . . 1 . . . . . . . . . 5 . . . . 1 . 3 2 3 1 Assault 10 | . . . . . . . . . . . . . . . . . . . . . 3 . 1 2 4 . Garrison 3 | . . . . . . . . . . . . . . . . . . . . . . . 3 . . . Intercept . | . . . . . . . . . . . . . . . . . . . . . . . . . . . Searches Triggered 1 | . . . . . . . . . . . . . . . . . . . . . 1 . . . . . Data Miner Redirects 7 | . . . . . . . . . . . . . . . . . . . . . 2 . 1 1 3 . Construction Impeded 2 | . . . . . . . . . . . . . . . . . . . . . . . 1 . 1 . Haulers Reinforced 5 | . . . . . . . . . . . . . . . . 2 . . . . . . . 1 2 . Active Scanning Responses . | . . . . . . . . . . . . . . . . . . . . . . . . . . . Cargo Convoy Interrupts . | . . . . . . . . . . . . . . . . . . . . . . . . . . . Stealth | -11 -10 -10 -10 -9 -8 -7 -7 -7 -7 -6 -6 -6 -6 -6 -5 -5 -5 -5 -5 -4 -4 -4 -4 -3 -2 -1 --------- Run | Yrd Mat Min Exi Min Mat Fac Low Low Dat Pro Fac Low Low Zio Pro Fac Upp Upp War Pro Fac Was Fac Res Res Acc Distress Signals 13 | . . . . . 3 . . . . . . . . . . 2 . . . . . . 1 2 1 4 Communications Jammed 93 | . . . . . . . . . . . . . . . . 8 . . 12 . . . . 16 57 . Distress Signals 77 | . . . . . . . . . . . . . . . . 8 . . 12 . . . . 13 44 . Times Spotted 400 | . 15 3 . . 19 6 10 6 . 16 4 2 3 . 7 33 . 14 101 15 11 . 5 54 58 18 Peak Tracking Total 14 | . 3 3 . . 4 2 4 4 . 5 2 1 3 . 5 5 . 3 12 8 3 . 2 5 10 14 Tactical Retreats 17 | . . . . . 1 . 2 1 . . . . . . . . . 2 3 . . . . 3 4 1 Traps | -11 -10 -10 -10 -9 -8 -7 -7 -7 -7 -6 -6 -6 -6 -6 -5 -5 -5 -5 -5 -4 -4 -4 -4 -3 -2 -1 ------- Run | Yrd Mat Min Exi Min Mat Fac Low Low Dat Pro Fac Low Low Zio Pro Fac Upp Upp War Pro Fac Was Fac Res Res Acc Traps Triggered 13 | . . . . . . . . . . . 2 . . . . . . . . . 1 . 3 5 2 . Indirectly . | . . . . . . . . . . . . . . . . . . . . . . . . . . . Trap Hack Attempts . | . . . . . . . . . . . . . . . . . . . . . . . . . . . Triggered . | . . . . . . . . . . . . . . . . . . . . . . . . . . . Disarmed 5 | . . . . . . . . . . . . . . . . . . . . . . . . 5 . . Reprogrammed . | . . . . . . . . . . . . . . . . . . . . . . . . . . . Reused . | . . . . . . . . . . . . . . . . . . . . . . . . . . . Traps Extracted . | . . . . . . . . . . . . . . . . . . . . . . . . . . . Installed . | . . . . . . . . . . . . . . . . . . . . . . . . . . . Triggered . | . . . . . . . . . . . . . . . . . . . . . . . . . . . Machines | -11 -10 -10 -10 -9 -8 -7 -7 -7 -7 -6 -6 -6 -6 -6 -5 -5 -5 -5 -5 -4 -4 -4 -4 -3 -2 -1 ---------- Run | Yrd Mat Min Exi Min Mat Fac Low Low Dat Pro Fac Low Low Zio Pro Fac Upp Upp War Pro Fac Was Fac Res Res Acc Machines Disabled 29 | . . . . . 1 1 1 . . . 1 . . . . 3 . . . 1 10 . 4 3 4 . Max in Single Turn 5 | . . . . . 1 1 1 . . . 1 . . . . 3 . . . 1 5 . . 1 1 . Garrison Access 5 | . . . . . . . . . . . . . . . . 2 . . . . 1 . . 1 1 . Machines Repaired . | . . . . . . . . . . . . . . . . . . . . . . . . . . . Machines Dismantled . | . . . . . . . . . . . . . . . . . . . . . . . . . . . Machines Sabotaged . | . . . . . . . . . . . . . . . . . . . . . . . . . . . Overloaded Fab Kills . | . . . . . . . . . . . . . . . . . . . . . . . . . . . Hacking | -11 -10 -10 -10 -9 -8 -7 -7 -7 -7 -6 -6 -6 -6 -6 -5 -5 -5 -5 -5 -4 -4 -4 -4 -3 -2 -1 --------- Run | Yrd Mat Min Exi Min Mat Fac Low Low Dat Pro Fac Low Low Zio Pro Fac Upp Upp War Pro Fac Was Fac Res Res Acc Machines Accessed 55 | . 7 . 2 . 4 1 . . 3 . 3 1 . 1 . 8 1 . 1 . 4 . 3 10 6 . Terminals 30 | . 6 . . . 2 1 . . . . 3 . . . . 2 . . . . 3 . 2 6 5 . Fabricators 4 | . . . . . . . . . . . . . . . . 4 . . . . . . . . . . Repair Stations 3 | . 1 . . . 1 . . . . . . . . . . . . . . . . . . 1 . . Recycling Units . | . . . . . . . . . . . . . . . . . . . . . . . . . . . Scanalyzers 4 | . . . . . 1 . . . . . . . . . . . . . . . . . 1 2 . . Garrison Access 5 | . . . . . . . . . . . . . . . . 2 . . . . 1 . . 1 1 . Total Hacks 132 | . 21 . 2 . 14 4 . . 23 . 3 1 . 4 . 19 1 . 1 . 8 . 6 13 12 . Successful 83 | . 12 . 2 . 9 2 . . 23 . . 1 . 4 . 12 1 . 1 . 4 . 2 7 3 . Failed 49 | . 9 . . . 5 2 . . . . 3 . . . . 7 . . . . 4 . 4 6 9 . Catastrophic 14 | . 2 . . . . . . . . . 3 . . . . 1 . . . . 1 . 1 3 3 . Database Lockouts . | . . . . . . . . . . . . . . . . . . . . . . . . . . . Manual 50 | . 14 . 1 . 9 3 . . . . 1 . . . . 7 . . 1 . 5 . . 5 4 . Terminals 64 | . 17 . . . 9 4 . . . . 3 . . . . 3 . . . . 7 . 4 8 9 . Fabricators 11 | . . . . . . . . . . . . . . . . 11 . . . . . . . . . . Repair Stations 7 | . 4 . . . 2 . . . . . . . . . . . . . . . . . . 1 . . Recycling Units . | . . . . . . . . . . . . . . . . . . . . . . . . . . . Scanalyzers 8 | . . . . . 3 . . . . . . . . . . . . . . . . . 2 3 . . Garrison Access 10 | . . . . . . . . . . . . . . . . 5 . . . . 1 . . 1 3 . Terminal Hacks 43 | . 3 . 2 . 1 2 . . 23 . . 1 . 4 . . 1 . 1 . 1 . 1 2 1 . Record 7 | . . . 1 . . . . . 6 . . . . . . . . . . . . . . . . . Part Schematic 14 | . . . . . . . . . 10 . . . . 4 . . . . . . . . . . . . Robot Schematic 4 | . . . . . . . . . 4 . . . . . . . . . . . . . . . . . Prototype ID Bank 3 | . . . . . . . . . 3 . . . . . . . . . . . . . . . . . Open Door 3 | . . . . . . . . . . . . 1 . . . . 1 . 1 . . . . . . . Level Access Points 2 | . . . . . . 1 . . . . . . . . . . . . . . . . . . 1 . Branch Access Points 3 | . . . . . 1 1 . . . . . . . . . . . . . . . . 1 . . . Disarm Traps 1 | . . . . . . . . . . . . . . . . . . . . . . . . 1 . . Dispatch Records 1 | . 1 . . . . . . . . . . . . . . . . . . . . . . . . . Hauler Manifests 4 | . 2 . . . . . . . . . . . . . . . . . . . 1 . . 1 . . Proto ID Catalog 1 | . . . 1 . . . . . . . . . . . . . . . . . . . . . . . Fabricator Hacks 5 | . . . . . . . . . . . . . . . . 5 . . . . . . . . . . Network Status 1 | . . . . . . . . . . . . . . . . 1 . . . . . . . . . . Load Schematic 2 | . . . . . . . . . . . . . . . . 2 . . . . . . . . . . Build 2 | . . . . . . . . . . . . . . . . 2 . . . . . . . . . . Repair Station Hacks 4 | . 2 . . . 2 . . . . . . . . . . . . . . . . . . . . . Scan Component 2 | . 1 . . . 1 . . . . . . . . . . . . . . . . . . . . . Repair 2 | . 1 . . . 1 . . . . . . . . . . . . . . . . . . . . . Recycling Unit Hacks . | . . . . . . . . . . . . . . . . . . . . . . . . . . . Scanalyzer 6 | . . . . . 3 . . . . . . . . . . . . . . . . . 1 2 . . Retrieve Study 6 | . . . . . 3 . . . . . . . . . . . . . . . . . 1 2 . . Garrison Access Hacks 5 | . . . . . . . . . . . . . . . . 2 . . . . 1 . . 1 1 . Seal Access 5 | . . . . . . . . . . . . . . . . 2 . . . . 1 . . 1 1 . Unauthorized Hacks 20 | . 7 . . . 3 . . . . . . . . . . 5 . . . . 2 . . 2 1 . Terminals 16 | . 7 . . . 3 . . . . . . . . . . 2 . . . . 2 . . 1 1 . Botnet 8 | . 2 . . . 1 . . . . . . . . . . 1 . . . . 2 . . 1 1 . Disrupt 1 | . . . . . . . . . . . . . . . . 1 . . . . . . . . . . Skim 7 | . 5 . . . 2 . . . . . . . . . . . . . . . . . . . . . Fabricators 3 | . . . . . . . . . . . . . . . . 3 . . . . . . . . . . Prioritize 1 | . . . . . . . . . . . . . . . . 1 . . . . . . . . . . Liberate 1 | . . . . . . . . . . . . . . . . 1 . . . . . . . . . . Recompile 1 | . . . . . . . . . . . . . . . . 1 . . . . . . . . . . Repair Stations 1 | . . . . . . . . . . . . . . . . . . . . . . . . 1 . . Patch 1 | . . . . . . . . . . . . . . . . . . . . . . . . 1 . . Recycling Units . | . . . . . . . . . . . . . . . . . . . . . . . . . . . Scanalyzers . | . . . . . . . . . . . . . . . . . . . . . . . . . . . Garrison Access . | . . . . . . . . . . . . . . . . . . . . . . . . . . . Data Cores Recovered 1 | . . . . . . . . . . . . . . . . . . . . . . . . . 1 . Used 1 | . . . . . . . . . . . . . . . . . . . . . . . . . 1 . Hacking Detections 39 | . 6 . . . 3 1 . . . . 3 . . . . 8 . . . . 3 . 3 7 5 . Full Trace Events 2 | . 1 . . . . . . . . . . . . . . . . . . . 1 . . . . . Feedback Events . | . . . . . . . . . . . . . . . . . . . . . . . . . . . Feedback Blocked . | . . . . . . . . . . . . . . . . . . . . . . . . . . . Robot Schematics Acquired 4 | . . . . . . . . . 4 . . . . . . . . . . . . . . . . . Robots Built . | . . . . . . . . . . . . . . . . . . . . . . . . . . . Authchips . | . . . . . . . . . . . . . . . . . . . . . . . . . . . Time . | . . . . . . . . . . . . . . . . . . . . . . . . . . . Total Robot Build Rating . | . . . . . . . . . . . . . . . . . . . . . . . . . . . Part Schematics Acquired 14 | . . . . . . . . . 10 . . . . 4 . . . . . . . . . . . . Parts Built 3 | . . . . . . . . . . . . . . . . 3 . . . . . . . . . . Authchips 1 | . . . . . . . . . . . . . . . . 1 . . . . . . . . . . Time 269 | . . . . . . . . . . . . . . . . 269 . . . . . . . . . . Total Part Build Rating 19 | . . . . . . . . . . . . . . . . 19 . . . . . . . . . . Part Studies Acquired 6 | . . . . . 3 . . . . . . . . . . . . . . . . . 1 2 . . Parts Repaired 2 | . 1 . . . 1 . . . . . . . . . . . . . . . . . . . . . Time 52 | . 26 . . . 26 . . . . . . . . . . . . . . . . . . . . . Parts Recycled . | . . . . . . . . . . . . . . . . . . . . . . . . . . . Recycled Matter . | . . . . . . . . . . . . . . . . . . . . . . . . . . . Retrieved Matter . | . . . . . . . . . . . . . . . . . . . . . . . . . . . Retrieved Components . | . . . . . . . . . . . . . . . . . . . . . . . . . . . Parts Scanalyzed . | . . . . . . . . . . . . . . . . . . . . . . . . . . . Part Schematics Acquired . | . . . . . . . . . . . . . . . . . . . . . . . . . . . Parts Damaged . | . . . . . . . . . . . . . . . . . . . . . . . . . . . Bothacking | -11 -10 -10 -10 -9 -8 -7 -7 -7 -7 -6 -6 -6 -6 -6 -5 -5 -5 -5 -5 -4 -4 -4 -4 -3 -2 -1 ------------ Run | Yrd Mat Min Exi Min Mat Fac Low Low Dat Pro Fac Low Low Zio Pro Fac Upp Upp War Pro Fac Was Fac Res Res Acc Used RIF Installer . | . . . . . . . . . . . . . . . . . . . . . . . . . . . Robots Hacked . | . . . . . . . . . . . . . . . . . . . . . . . . . . . Non-combat . | . . . . . . . . . . . . . . . . . . . . . . . . . . . Combat . | . . . . . . . . . . . . . . . . . . . . . . . . . . . Robot Hacks Applied . | . . . . . . . . . . . . . . . . . . . . . . . . . . . Relay Couplers Released 3 | . . . . . . . . . . . . . . . . 3 . . . . . . . . . . Programmers 3 | . . . . . . . . . . . . . . . . 3 . . . . . . . . . . Fabnet Peak Effective % . | . . . . . . . . . . . . . . . . . . . . . . . . . . . Robots Rewired 5 | . . . . . . . . . . . . . . . . . . . 5 . . . . . . . Allies Hacked . | . . . . . . . . . . . . . . . . . . . . . . . . . . . Hacks Repelled . | . . . . . . . . . . . . . . . . . . . . . . . . . . . Allies | -11 -10 -10 -10 -9 -8 -7 -7 -7 -7 -6 -6 -6 -6 -6 -5 -5 -5 -5 -5 -4 -4 -4 -4 -3 -2 -1 -------- Run | Yrd Mat Min Exi Min Mat Fac Low Low Dat Pro Fac Low Low Zio Pro Fac Upp Upp War Pro Fac Was Fac Res Res Acc Total Allies 27 | . . . . . . . . . . . . . . . . 2 . . 5 . . 20 . . . . Largest Group 20 | . . . . . . . . . . . . . . . . 2 . . 5 1 . 20 20 2 . . Highest-Rated Group 860 | . . . . . . . . . . . . . . . . 98 . . 286 63 . 860 860 92 . . Highest-Rated Ally 68 | . . . . . . . . . . . . . . . . 49 . . 68 63 . 50 50 46 . . Total Orders 23 | . . . . . . . . . . . . . . . . 5 3 8 6 1 . . . . . . STAY 6 | . . . . . . . . . . . . . . . . . . . 5 1 . . . . . . FOLLOW 1 | . . . . . . . . . . . . . . . . . . . 1 . . . . . . . EXPLORE 8 | . . . . . . . . . . . . . . . . . 3 5 . . . . . . . . RETURN 8 | . . . . . . . . . . . . . . . . 5 . 3 . . . . . . . . Ally Attacks 215 | . . . . . . . . . . . . . . . . 7 . . 40 . . 2 159 7 . . Total Damage 7644 | . . . . . . . . . . . . . . . . 194 . . 1874 . . 76 5363 137 . . Kills 37 | . . . . . . . . . . . . . . . . 1 . . 9 . . 1 25 1 . . Allies Corrupted . | . . . . . . . . . . . . . . . . . . . . . . . . . . . Allies Melted . | . . . . . . . . . . . . . . . . . . . . . . . . . . . Intel | -11 -10 -10 -10 -9 -8 -7 -7 -7 -7 -6 -6 -6 -6 -6 -5 -5 -5 -5 -5 -4 -4 -4 -4 -3 -2 -1 ------- Run | Yrd Mat Min Exi Min Mat Fac Low Low Dat Pro Fac Low Low Zio Pro Fac Upp Upp War Pro Fac Was Fac Res Res Acc Active Infowar (turns) 17640 | 5 1223 90 488 154 101 . . . . 318 614 549 1479 1255 182 1590 604 729 928 255 976 610 613 2417 2460 . Sensors 3783 | . . . . . . . . . . 318 . 549 1479 1255 182 . . . . . . . . . . . Seismic 2061 | 5 1223 90 488 154 101 . . . . . . . . . . . . . . . . . . . . . Jamming 11796 | . . . . . . . . . . . 614 . . . . 1590 604 729 928 255 976 610 613 2417 2460 . Robot Analysis Total . | . . . . . . . . . . . . . . . . . . . . . . . . . . . Derelict Logs Recovered 13 | . . . . 1 . . 3 1 . . . 3 . 2 1 . . . . 2 . . . . . . Drone Launches 13 | . . . . . . . . . . . . . . . . 5 3 5 . . . . . . . . Drone Recoveries 11 | . . . . . . . . . . . . . . . . 5 1 5 . . . . . . . . Exploration | -11 -10 -10 -10 -9 -8 -7 -7 -7 -7 -6 -6 -6 -6 -6 -5 -5 -5 -5 -5 -4 -4 -4 -4 -3 -2 -1 ------------- Run | Yrd Mat Min Exi Min Mat Fac Low Low Dat Pro Fac Low Low Zio Pro Fac Upp Upp War Pro Fac Was Fac Res Res Acc Turns Passed 23484 | 83 1291 90 488 154 1227 848 636 439 140 671 616 592 1498 1255 326 1795 604 729 1610 705 1030 610 613 2734 2570 130 Spaces Moved 11298 | 17 606 48 304 97 500 452 332 222 81 300 323 346 426 762 181 708 319 339 688 351 461 280 315 1286 1316 238 Core 335 | . . . . . . . . . . . . . . . . . . . . . . . . . 173 162 Treads 10444 | . 198 48 304 97 482 452 332 222 81 300 323 346 426 762 181 708 319 339 688 351 461 280 315 1286 1143 . Legs 425 | 17 408 . . . . . . . . . . . . . . . . . . . . . . . . . Wheels 18 | . . . . . 18 . . . . . . . . . . . . . . . . . . . . . Hover 76 | . . . . . . . . . . . . . . . . . . . . . . . . . . 76 Flight . | . . . . . . . . . . . . . . . . . . . . . . . . . . . Fastest Speed 40 | 120 120 160 160 160 140 160 167 167 167 167 161 163 163 163 163 163 163 163 163 167 168 168 167 150 50 40 Average Speed 158 | 120 169 160 160 160 159 162 167 167 167 167 164 163 163 163 163 165 163 163 164 167 168 168 167 162 136 46 Slowest Speed 260 | 120 260 160 160 160 160 250 167 167 167 167 166 163 163 163 163 167 163 163 245 167 168 168 168 250 150 50 Overloaded Moves . | . . . . . . . . . . . . . . . . . . . . . . . . . . . Propulsion Burnouts . | . . . . . . . . . . . . . . . . . . . . . . . . . . . Robots Hopped . | . . . . . . . . . . . . . . . . . . . . . . . . . . . Potential Cave-ins 11 | . . . . . . . . . . . . . . . . . 1 . . . . . . . 10 . Cave-ins Triggered . | . . . . . . . . . . . . . . . . . . . . . . . . . . . Exploration Rate (%) 48 | 3 98 19 69 33 32 16 56 46 69 60 12 64 48 81 44 28 75 81 78 67 14 95 12 43 43 12 Regions Visited 26 Branch Regions 15 Pre-discovered Areas 4 | . . . 1 1 . . . . 1 . . . . . 1 . . . . . . . . . . . Known Exits Taken 10 | . . . . . . 1 . . . 1 1 1 1 1 1 1 . . . 1 . . . . 1 . Unknown Exits Taken 14 | 1 1 1 1 1 1 . 1 1 1 . . . . . . . 1 1 1 . . . 1 1 . . Scrap Searched 19 | . . . . . . . 2 2 . 1 . 2 2 2 2 . 1 1 . 4 . . . . . . Spaces Dug 180 | . . . . . 7 2 . 13 . 12 8 . . . . 21 . 17 . . 5 . 1 28 66 . Terrain Destroyed 782 | . . . . . 16 5 12 29 . 108 10 1 3 . 7 57 35 52 12 51 105 . 3 61 211 4 Melee 59 | . . . . . . 2 . . . . 8 . . . . 21 . 1 . . . . . . 27 . Projectile 233 | . . . . . 16 3 9 2 . 1 2 1 3 . 2 14 1 16 12 8 15 . 3 61 60 4 AOE 490 | . . . . . . . 3 27 . 107 . . . . 5 22 34 35 . 43 90 . . . 124 . Terrain Rammed . | . . . . . . . . . . . . . . . . . . . . . . . . . . . Walls Destroyed . | . . . . . . . . . . . . . . . . . . . . . . . . . . . Machines Disabled . | . . . . . . . . . . . . . . . . . . . . . . . . . . . Actions | -11 -10 -10 -10 -9 -8 -7 -7 -7 -7 -6 -6 -6 -6 -6 -5 -5 -5 -5 -5 -4 -4 -4 -4 -3 -2 -1 --------- Run | Yrd Mat Min Exi Min Mat Fac Low Low Dat Pro Fac Low Low Zio Pro Fac Upp Upp War Pro Fac Was Fac Res Res Acc Total 15685 | 59 765 52 307 96 863 525 362 260 86 448 381 365 1220 776 195 1152 390 451 1002 404 669 420 381 1849 1958 249 Wait 2827 | 32 51 . . . 252 24 . 13 . 125 19 5 788 . 2 263 56 73 134 13 143 135 52 297 350 . Move 11273 | 16 605 47 303 96 499 451 331 221 80 299 322 345 425 761 180 707 318 338 687 350 461 279 314 1285 1315 238 Hop . | . . . . . . . . . . . . . . . . . . . . . . . . . . . Pick Up 129 | . 20 . 2 . 18 8 2 3 . 1 7 1 . 5 1 22 1 2 9 1 8 1 . 6 10 1 Fast Attach 70 | 1 1 . . . 8 2 . . 3 . 5 1 . 2 . 3 1 . 10 2 3 1 6 12 8 1 Attach 44 | . 1 . . . 5 2 . 1 . 1 2 . 1 . . 8 1 . 1 . 2 . . 6 12 1 Detach 16 | . . . . . 3 . . . . . . 1 . . . 5 . . . . 1 . . 3 3 . Swap 152 | . 12 . . . 8 10 2 4 . 7 5 7 2 2 3 34 4 10 14 6 10 . . 7 5 . Drop 159 | . 15 . 2 . 27 8 2 3 3 1 6 2 . 6 1 22 2 2 22 1 10 2 . 12 9 1 Fire 882 | 10 60 5 . . 42 16 25 15 . 14 4 3 4 . 8 62 3 25 78 31 31 . 9 220 210 7 Melee 78 | . . . . . . 3 . . . . 11 . . . . 24 4 1 . . . . . 1 34 . Ram 2 | . . . . . . . . . . . . . . . . . . . . . . . . . 2 . Kick . | . . . . . . . . . . . . . . . . . . . . . . . . . . . Crush 4 | . . . . . 1 1 . . . . . . . . . 2 . . . . . . . . . . Escape Stasis . | . . . . . . . . . . . . . . . . . . . . . . . . . . . Rewire 49 | . . . . . . . . . . . . . . . . . . . 47 . . 2 . . . . Trap . | . . . . . . . . . . . . . . . . . . . . . . . . . . . Miscellaneous . | . . . . . . . . . . . . . . . . . . . . . . . . . . . Route ------- -11/Scrapyard -10/Materials (discovered 4 exits: *Mat x3 / [*Min]) -10/Mines (discovered 3 exits: Mat x2 / *Exi) -10/Exiles -9/Mines -8/Materials -7/Factory (discovered 7 exits: *Fac x4 / Sto / *Low x2) -7/Lower Caves -7/Lower Caves -7/Data Miner -6/Proximity Caves -6/Factory -6/Lower Caves -6/Lower Caves -6/Zion -5/Proximity Caves -5/Factory (discovered 6 exits: *Fac x4 / *Upp x2) -5/Upper Caves -5/Upper Caves (discovered 2 exits: *Fac / *War) -5/Warlord -4/Proximity Caves -4/Factory -4/Waste -4/Factory (discovered 6 exits: *Res / Upp x2 / Ext x2 / Arm) -3/Research (discovered 2 exits: *Res / Tes) -2/Research (discovered 4 exits: *Acc x3 / *Qua) -1/Access History --------- Turn | Location | Event 17 | -11/Scrapyard | Discovered new exit (range 2) 84 | -11/Scrapyard | Entered Materials 316 | -10/Materials | Build established: Mutant 386 | -10/Materials | Discovered new exit (range 8) 544 | -10/Materials | Discovered new exit (range 14) 561 | -10/Materials | Discovered new exit (range 16) 757 | -10/Materials | Core integrity fell below 50% 1158 | -10/Materials | Repaired Lgt. Armor Plating 1171 | -10/Materials | Learned 2 Mines zone layouts 1209 | -10/Materials | Discovered new exit (range 4) 1237 | -10/Materials | Learned Storage terminal intel 1291 | -10/Materials | Learned Storage emergency access door positions 1335 | -10/Materials | Learned Storage trap positions 1375 | -10/Materials | Entered Mines 1376 | -10/Mines | Identified exit to Materials 1457 | -10/Mines | Deemed a non-threat by the Exiles lab entrance 1458 | -10/Mines | Discovered new exit (range 5) 1465 | -10/Mines | Entered Exiles 1505 | -10/Exiles | Met 8R-AWN 1529 | -10/Exiles | Met EX-HEX 1576 | -10/Exiles | Met EX-BIN 1595 | -10/Exiles | Aligned with FarCom system 1597 | -10/Exiles | Given EX-Vault access code 1633 | -10/Exiles | Opened EX-Vault 1644 | -10/Exiles | Found Superbattery 1677 | -10/Exiles | Warned to stay clear of 0b10 Research branches 1723 | -10/Exiles | Met EX-DEC 1734 | -10/Exiles | Learned location of Zion (-6) 1936 | -10/Exiles | Discovered new exit (range 14) 1953 | -10/Exiles | Left Exiles lab with Superbattery 1953 | -10/Exiles | Entered Mines 1988 | -9/Mines | Learned location of Storage (-7) 2061 | -9/Mines | Discovered new exit (range 5) 2064 | -9/Mines | Learned Materials interactive machine intel 2107 | -9/Mines | Entered Materials 2107 | -8/Materials | Evolved 4 slots: Propulsion x1, Utility x2, Weapon x1 2108 | -8/Materials | Loaded intel: 17 interactive machine locations 2448 | -8/Materials | Build established: Scavenger-Skirmisher 2823 | -8/Materials | Discovered new exit (range 12) 3242 | -8/Materials | Repaired Lgt. Armor Plating 3334 | -8/Materials | Entered Factory 3334 | -7/Factory | Evolved 2 slots: Propulsion x1, Utility x1 3557 | -7/Factory | Identified exit to Factory 3557 | -7/Factory | Identified exit to Storage 3557 | -7/Factory | Identified exit to Lower Caves 3729 | -7/Factory | Build established: Scavenger-Tank 3793 | -7/Factory | Noticed a derelict Sapper rigging charges 4182 | -7/Factory | Entered Lower Caves 4373 | -7/Lower Caves | Learned Factory garrison access intel 4408 | -7/Lower Caves | Learned Factory terminal intel 4604 | -7/Lower Caves | Learned Factory terminal intel 4651 | -7/Lower Caves | Attacked by a delusional Derelict stockpiling parts 4753 | -7/Lower Caves | Discovered new exit (range 12) 4818 | -7/Lower Caves | Entered another Lower Caves area 4819 | -7/Lower Caves | Encountered a Warlord checkpoint 4827 | -7/Lower Caves | Learned 4 Factory zone layouts 5080 | -7/Lower Caves | Spotted B-75 Beast 5199 | -7/Lower Caves | Destroyed B-75 Beast 5244 | -7/Lower Caves | Discovered new exit (range 8) 5257 | -7/Lower Caves | Entered Data Miner 5257 | -7/Data Miner | Discovered new exit (range 6) 5292 | -7/Data Miner | Met Data Miner 5324 | -7/Data Miner | Learned location of Section 7 (-2) 5324 | -7/Data Miner | Acquired the access code to Warlord's prototype stash 5349 | -7/Data Miner | Received God Mode back door access code from Data Miner 5397 | -7/Data Miner | Entered Proximity Caves 6013 | -6/Proximity Caves | Destroyed 8 combat bots 6043 | -6/Proximity Caves | Discovered exit to Factory (range 13) 6068 | -6/Proximity Caves | Entered Factory 6068 | -6/Factory | Evolved 2 slots: Power x1, Propulsion x1 6070 | -6/Factory | Loaded intel: 26 terminal locations 6071 | -6/Factory | Loaded intel: 4 garrison access locations 6480 | -6/Factory | Build established: Scavenger-Mutant 6629 | -6/Factory | Discovered new exit (range 7) 6683 | -6/Factory | Identified exit to Lower Caves 6684 | -6/Factory | Entered Lower Caves 6827 | -6/Lower Caves | Encountered a Warlord checkpoint 6933 | -6/Lower Caves | Attracted the attention of an 0b10 checkpoint 6999 | -6/Lower Caves | Learned Factory stockpile data 7056 | -6/Lower Caves | Learned Factory trap positions 7185 | -6/Lower Caves | Learned Factory stockpile data 7209 | -6/Lower Caves | Discovered new exit (range 8) 7247 | -6/Lower Caves | Identified exit to Lower Caves 7259 | -6/Lower Caves | Build established: Skirmisher 7276 | -6/Lower Caves | Entered another Lower Caves area 8755 | -6/Lower Caves | Discovered new exit (range 7) 8763 | -6/Lower Caves | Identified exit to Zion 8774 | -6/Lower Caves | Entered Zion 8972 | -6/Zion | Given the Hacking Drone Bay 8972 | -6/Zion | Found Prototype Device 8983 | -6/Zion | Identified Hacking Drone Bay 9005 | -6/Zion | Build established: Scavenger-Skirmisher 9020 | -6/Zion | Learned 8 Factory zone layouts 9072 | -6/Zion | Visited the Megawrench Repair Shop 9072 | -6/Zion | Megawrench repaired 14 parts 9146 | -6/Zion | Found Prototype Special Weapon 9146 | -6/Zion | Identified RU-N14's Throwing Claymores 9153 | -6/Zion | Found RU-N14's Throwing Claymores 9356 | -6/Zion | Found CR-A16's Pointy Stick 9626 | -6/Zion | Learned Factory stockpile data 9908 | -6/Zion | Discovered new exit (range 11) 10027 | -6/Zion | Identified exit to Proximity Caves 10029 | -6/Zion | Entered Proximity Caves 10031 | -5/Proximity Caves | Spotter reported a threat 10032 | -5/Proximity Caves | Spotter reported a threat 10347 | -5/Proximity Caves | Discovered new exit (range 8) 10353 | -5/Proximity Caves | Identified exit to Factory 10355 | -5/Proximity Caves | Entered Factory 10355 | -5/Factory | Evolved 2 slots: Utility x2 10356 | -5/Factory | Identified exit to Factory 10356 | -5/Factory | Identified exit to Upper Caves 10357 | -5/Factory | Loaded intel: 124 trap records 10359 | -5/Factory | Loaded intel: 26 terminal locations 10650 | -5/Factory | Build established: Mutant 10779 | -5/Factory | Fabricated Antimatter Reactor (x2) 11929 | -5/Factory | Fabricated Exp. Targeting Computer (x1) 12150 | -5/Factory | Entered Upper Caves 12596 | -5/Upper Caves | Discovered new exit (range 28) 12754 | -5/Upper Caves | Entered another Upper Caves area 12819 | -5/Upper Caves | Attracted the attention of an 0b10 checkpoint 12957 | -5/Upper Caves | Discovered exit to Factory (range 15) 13059 | -5/Upper Caves | Build established: Tank 13214 | -5/Upper Caves | Discovered new exit (range 40) 13483 | -5/Upper Caves | Entered Warlord 13537 | -5/Warlord | System corruption cleaned by Quarantine Array 13961 | -5/Warlord | Opened Warlord's prototype stash 13966 | -5/Warlord | Build established: Commander-Tank 13970 | -5/Warlord | Found Prototype Reactor 13970 | -5/Warlord | Identified Vortex Chain Reactor 13977 | -5/Warlord | Found Exp. Targeting Computer 13990 | -5/Warlord | Found Prototype Device 13990 | -5/Warlord | Identified Thermal Barrier 14037 | -5/Warlord | Visited the Vortex Lab 14050 | -5/Warlord | Warlord's base attacked by MAIN.C 14050 | -5/Warlord | Found Prototype Energy Cannon 14053 | -5/Warlord | Found Prototype Energy Cannon 14054 | -5/Warlord | Identified Vortex Cannon (x2) 14059 | -5/Warlord | Found Prototype Energy Gun 14059 | -5/Warlord | Identified Vortex Shotgun 14066 | -5/Warlord | Found Prototype Energy Gun 14066 | -5/Warlord | Identified Vortex Rail 14156 | -5/Warlord | Met Warlord 14320 | -5/Warlord | Spotted B-75 Beast 14324 | -5/Warlord | Destroyed B-75 Beast 14400 | -5/Warlord | Warlord forces counterattacked 14423 | -5/Warlord | Spotted Executioner 14517 | -5/Warlord | Spotted Striker 14594 | -5/Warlord | P-80 Master assimilated allied 5Q-BQC(M) 14599 | -5/Warlord | Lost 10 allies 14677 | -5/Warlord | Spotted Striker 14691 | -5/Warlord | Lost 6 allies 14706 | -5/Warlord | Found Prototype Ballistic Cannon 14706 | -5/Warlord | Identified Hvy. Autocannon 14709 | -5/Warlord | Spotted Striker 14721 | -5/Warlord | Spotted Striker 14725 | -5/Warlord | Warlord base infiltrated, sounded retreat 14760 | -5/Warlord | Spotted Striker 14785 | -5/Warlord | Destroyed Striker 14815 | -5/Warlord | Lost 11 allies 14887 | -5/Warlord | Lost 5 allies 14962 | -5/Warlord | Spotted Executioner 14962 | -5/Warlord | Spotted Striker 14968 | -5/Warlord | Spotted Executioner 14969 | -5/Warlord | Destroyed Executioner 14988 | -5/Warlord | Destroyed Executioner 15014 | -5/Warlord | Lost 3 allies 15077 | -5/Warlord | Discovered new exit (range 12) 15088 | -5/Warlord | Spotted Striker 15093 | -5/Warlord | Entered Proximity Caves 15093 | -4/Proximity Caves | Accompanied by 1 ally 15118 | -4/Proximity Caves | Build established: Scavenger-Tank 15118 | -4/Proximity Caves | Lost 4 allies 15214 | -4/Proximity Caves | Spotter reported a threat 15216 | -4/Proximity Caves | Spotter reported a threat 15288 | -4/Proximity Caves | Destroyed 9 combat bots 15314 | -4/Proximity Caves | Spotted B-86 Titan 15331 | -4/Proximity Caves | Destroyed B-86 Titan 15485 | -4/Proximity Caves | Attracted the attention of an 0b10 checkpoint 15694 | -4/Proximity Caves | Learned Research stockpile data 15758 | -4/Proximity Caves | Discovered exit to Factory (range 5) 15798 | -4/Proximity Caves | Entered Factory 15798 | -4/Factory | Evolved 2 slots: Propulsion x1, Utility x1 16041 | -4/Factory | Spotted B-86 Titan 16048 | -4/Factory | Search patrols dispatched 16117 | -4/Factory | Destroyed B-86 Titan 16298 | -4/Factory | First assault squad dispatched 16564 | -4/Factory | Incoming assault squad redirected 16573 | -4/Factory | Incoming assault squad redirected 16828 | -4/Factory | Sucked down chute 16828 | -4/Factory | Entered Waste 16829 | -4/Waste | Joined by Warlord forces that had cleared the area 17138 | -4/Waste | A Compactor rumbled back to life 17138 | -4/Waste | Allies destroyed C-40 Crusher 17170 | -4/Waste | Discovered new exit (range 16) 17438 | -4/Waste | Entered Factory 17438 | -4/Factory | Accompanied by 20 allies 17756 | -4/Factory | Identified exit to Upper Caves 17756 | -4/Factory | Identified exit to Extension 17756 | -4/Factory | Identified exit to Armory 17938 | -4/Factory | First assault squad dispatched 17958 | -4/Factory | Lost 4 allies 18014 | -4/Factory | Discovered new exit (range 12) 18042 | -4/Factory | Incoming assault squad redirected 18051 | -4/Factory | Entered Research 18051 | -3/Research | Accompanied by 2 allies 18051 | -3/Research | Evolved 2 slots: Utility x1, Weapon x1 18052 | -3/Research | Identified exit to Testing 18080 | -3/Research | Lost 11 allies 19254 | -3/Research | Found Quantum Capacitor 19545 | -3/Research | System corruption reached 10% 19801 | -3/Research | First assault squad dispatched 20251 | -3/Research | Build established: Tank 20486 | -3/Research | Incoming investigation squad redirected 20753 | -3/Research | Discovered new exit (range 15) 20785 | -3/Research | Entered another Research area 20785 | -2/Research | Evolved 2 slots: Utility x2 20915 | -2/Research | Discovered new exit (range 14) 21057 | -2/Research | Identified exit to Quarantine 21211 | -2/Research | Destroyed 9 combat bots 21216 | -2/Research | Lost 3 parts (2u1w) 21236 | -2/Research | System corruption reached 10% 22285 | -2/Research | First assault squad dispatched 22309 | -2/Research | Incoming assault squad redirected 22314 | -2/Research | Incoming assault squad redirected 22802 | -2/Research | Incoming assault squad redirected 23124 | -2/Research | Identified exit to Access 23239 | -2/Research | System corruption reached 30% 23256 | -2/Research | Released all parts (12) 23275 | -2/Research | Destroyed 7 combat bots 23285 | -2/Research | Lost 11 parts (1p1n4u5w) 23355 | -2/Research | Entered Access 23355 | -1/Access | Evolved 2 slots: Propulsion x2 23444 | -1/Access | Spotted B-99 Colossus 23451 | -1/Access | Core integrity fell below 50% 23480 | -1/Access | Core integrity fell below 20% 23485 | -1/Access | Destroyed by S-43 Plague with Heavy Machine Gun Last Messages --------------- 23447_ Slug penetrates R-10 Processor. 23447_ Acquired 152 matter. 23448_ Acquired 6 matter. 23449_ K-01 Serf collects debris. 23450_ Penetrated by Slug. 23450_ Slug penetrates Wall. 23451_ Acquired 1 matter. 23452_ R-10 Processor collects Unknown Engine. 23456_ Acquired Enh. Nova Cannon. 23472_ Slug penetrates Wall. 23472_ Penetrated by Slug. 23474_ O-32 Director sends out distress signal. 23474_ O-32 Director: "IFF HANDSHAKE FAILED. SECURING TERMINAL." 23479_ S-43 Plague misfires. 23481_ P-80 Master resets S-43 Plague, system corruption cleaned. 23482_ P-80 Master resets P-80 Master, system corruption cleaned. 23483_ ALERT: Potential suspicious activity detected, Programmers report to Access Zone 5H. 23484_ ALERT: Hostiles spotted, dispatching reinforcements to Terminal A010. Map ----- +----------------------------------------------------+ | #????????????????????# #???????? | | #????????????????????# #???????? | | #????????????????????+ #???????? | | #????????????????????# #???????? | | ++###########????????????????????# #???????? | | ???????????????????????????# #???????? | | ???????????????????????? ????????? | | #?????????????????????????????????????? | | #?????????????????????????????????????? | | #?????????????????????????????????????? | | """"""" #?????????????????????????????????????? | | """"""" #?????????????????????????????????????? | | ? #???????###########???????????????????? | | ?????#???????# ????????????????????? | | ???????????????# ????????????????????? | | ????????????????# ????????????????????? | | ????????????????# ????????????????????? | | ###????????????????# ?????????????????????? | | ??????????????? ??# ?????????????????????? | | ???????????????? ??# ?????????????????????? | | ??????????????o?? ?# #?????????????????????? | | ????????????????? # #?????????????????????? | | ?????????????????? # w#?????????????????????? | | ???????????????????+ #?????????????????????? | | ???????????????????# p #?????????????????????? | | ???????????????????# p @ #?????????????????????? | | ????????????######## #?????????????????????? | | ????????????# #?????????????????????? | | ????????????# #?????????????????????? | | ????????????# #?????????????????????? | | ????????????+ s +?????????????????????? | | ????????????#s #?????????????????????? | | ????????????# #?????????????????????? | | ?????########s #?????????????????????? | | ###### s s ########?????????????????????? | | s #????????????????????????????? | | ###### #????????????????????????????? | | ?????# #????????????????????????????? | | ?????# s #????????????????????????????? | | ?????# #????????????????????????????? | | ?????# #????????????????????????????? | | ###### ########????????????????????????????? | | # #???????????????????????????????????? | | # #???????????????????????????????????? | | ! # #???##########??????????????????????? | | # #?? #??????????????????????? | | " #?? #??????????????????????? | | # #? #??????????????????????? | | ! " #? ???????????????????????? | | # # ?????????????????????????? | +----------------------------------------------------+ Best States ------------- Heat Dissipation 118 Energy Generation 55 Energy Capacity 2060 Matter Stores 300 Matter Capacity 300 Sight Range 16 Robot Scan Range 16 Terrain Scan Density 10 Jamming Range 12 Armor Coverage 600 Resistance: TH 50 Evasion (%) 57 Targeting Accuracy 44 Recoil Reduction 6 Energy Filtering 50 Particle Charging 25 Authchip Count 1 Item Schematics ----------------- Combat Drone Bay | -7/Data Miner | Free Lgt. Regenerative Plating | -7/Data Miner | Free Cld. Cesium-ion Thruster | -7/Data Miner | Free Exp. Targeting Computer | -7/Data Miner | Free Force Rifle | -7/Data Miner | Free Arm. Medium Treads | -7/Data Miner | Free Adv. Recoil Stabilizer | -7/Data Miner | Free Adv. Plasma Cannon | -7/Data Miner | Free Dispersion Rifle | -7/Data Miner | Free Imp. Force Booster | -7/Data Miner | Free Riot Gun | -6/Zion | Free Flamer | -6/Zion | Free Beamcaster | -6/Zion | Free Barrage Gun | -6/Zion | Free Robot Schematics ------------------ G-47 Trooper | -7/Data Miner | Free H-66 Slayer | -7/Data Miner | Free A-15 Conveyor | -7/Data Miner | Free O-24 Administrator | -7/Data Miner | Free Fabricated ------------ Antimatter Reactor | x2 | -5/Factory | Preloaded Exp. Targeting Computer | x1 | -5/Factory | Authchip Repaired ---------- Lgt. Armor Plating | 22% | -10/Materials Lgt. Armor Plating | 72% | -8/Materials Studied --------- Lgt. Treads | -8/Materials | Hacked Hvy. Particle Cannon | -8/Materials | Hacked Ion Cannon | -8/Materials | Hacked Matter Neutralizer | -4/Factory | Hacked Adv. Heavy Treads | -3/Research | Hacked Imp. Heavy Treads | -3/Research | Hacked Alien Tech Used ----------------- None Achievements -------------- Botjacking Ghost 'Em Hammer Time Heavy Suspicion Hot Stuff I Laugh At Your Crits Immobile And Lovin' It King Drone Live, Flee, And Rebuild Perfect Aim Physics Hates This One Trick Plot Armor Suspicious Tank Life Tune-up Well Done Well-fed Force Field Challenges ------------ None Game ------ Seed WeldingTransportSpecial Manual? 0 Play Time 04:09:52 Cumulative 229.4 hours Start 2026.01.17 @ 22:45:48 End 2026.01.20 @ 19:38:46 Sessions 9 Manual Loads 0 Difficulty Rogue Special Mode None Game No. 149 Rogue 149 Adventurer 0 Explorer 0 Win Type - Total 19 Types 9/0/3/7/0/0/0/0/0/0 Lore% 71 Gallery% 64 Achievement% 42 Wizard Run 0 Options --------- Layout 0 ASCII 0 Keyboard 1 Movement Numpad Keybinds 0 Fullscreen 1 Font 36/Proggy Map View 76x50 Zoom Use 0% Tactical HUD 1 Map Filters NONE Filters NONE Steam 1 RUN: 0ead530e-1557-499f-a3a2-422930d304e5